[Event "Khanty-Mansiysk FIDE GP (Women)"]
[Site "Khanty-Mansiysk"]
[Date "2014.04.11"]
[Round "3"]
[White "Zhao, Xue"]
[Black "Stefanova, Antoaneta"]
[Result "1-0"]
[ECO "D30"]
[WhiteElo "2552"]
[BlackElo "2489"]
[Annotator "Ramirez Alvarez,A"]
[PlyCount "147"]
[EventDate "2014.04.09"]
[EventType "tourn"]
[EventRounds "11"]
[EventCountry "RUS"]
[EventCategory "10"]
[SourceTitle "CBM 160"]
[Source "ChessBase"]
[SourceDate "2014.05.15"]
[SourceVersion "1"]
[SourceVersionDate "2014.05.15"]
[SourceQuality "1"]
[TimeControl "40/5400+30:1800+30"]
[WhiteClock "1:30:00"]
[BlackClock "1:30:00"]

1. d4 {[%emt 0:00:00]} d5 {[%emt 0:00:00]} 2. c4 {[%emt 0:00:00]} c6 {[%emt 0:
00:00]} 3. Nf3 {[%emt 0:00:00]} Nf6 {[%emt 0:00:00]} 4. Qb3 {[%emt 0:00:22]} e6
{[%emt 0:12:56]} 5. Bg5 {[%emt 0:00:22]} dxc4 {[%emt 0:02:39]} 6. Qxc4 {
[%emt 0:00:56]} b5 {[%emt 0:00:04]} 7. Qc2 {[%emt 0:01:23]} Bb7 {[%emt 0:00:45]
} 8. e4 {[%emt 0:09:39]} Nbd7 {[%emt 0:03:32]} 9. Nbd2 {[%emt 0:02:25]} Qb6 {
[%emt 0:05:28]} (9... Rc8 10. Bd3 Qb6 11. a4 a6 12. axb5 cxb5 13. Qb1 h6 14.
Be3 Ng4 15. e5 Bb4 16. O-O O-O 17. Ne4 f5 18. exf6 Ndxf6 19. Ne5 Nxe4 20. Bxe4
Nxe5 21. dxe5 Bc5 22. Bxb7 Qxb7 23. Qg6 Qf7 24. Qxf7+ Rxf7 25. Rxa6 Bxe3 26.
fxe3 Rxf1+ 27. Kxf1 Kf7 28. Rd6 Rc2 29. b4 Rb2 30. Rd4 g5 31. h4 Kg6 32. hxg5
Kxg5 33. Rf4 h5 34. Rf6 Rxb4 35. Rxe6 {1/2-1/2 (35) Xiu,D (2571)-Ding,L (2717)
Xinghua 2014}) 10. a4 {[%emt 0:01:56]} a6 {[%emt 0:00:23]} 11. Be2 {[%emt 0:02:
16]} c5 {[%emt 0:03:15]} 12. axb5 {[%emt 0:00:23]} axb5 {[%emt 0:00:11]} 13.
Rxa8+ {[%emt 0:00:20]} Bxa8 {[%emt 0:00:01]} 14. O-O {[%emt 0:00:37]} h6 {
[%emt 0:30:20]} 15. Bh4 {[%emt 0:04:11]} g5 $146 {[%emt 0:08:20]} (15... Be7
16. dxc5 Bxc5 17. b4 Bxb4 18. e5 g5 19. exf6 gxh4 20. Bxb5 Qb7 21. Rb1 Bd6 22.
Qa4 {1-0 (22) Ibrahimov,R (2537)-Melnikova,Y (2264) Dubai 2009}) 16. Bg3 {
[%emt 0:00:15]} Bb7 {[%emt 0:09:19]} 17. Rc1 {[%emt 0:14:02]} Be7 {[%emt 0:00:
27]} 18. h4 {[%emt 0:14:48]} Nh5 {[%emt 0:06:53]} 19. Bh2 {[%emt 0:05:02]} Nf4
{[%emt 0:00:52]} 20. Bf1 {[%emt 0:02:24]} Ng6 {[%emt 0:06:19]} 21. dxc5 {
[%emt 0:03:49]} Nxc5 {[%emt 0:00:07]} 22. h5 {[%emt 0:07:53]} Nf4 {[%emt 0:00:
22]} 23. Qc3 $14 {[%emt 0:04:29][%csl Gc3,Rh8] A very strange game. Zhao Xue
manage to get an advantage from the opening by stifling her opponent's
counterplay and retaining her positional advantages, but her play afterwards
allowed Stefanova to activate her pieces powerfully. The Bulgarian missed a
precise continuation that might even have started to swing the game in her
favor, but instead she lost a pawn and ended up in a difficult endgame.
Eventually this difficult endgame turned hopeless as Zhao Xue slowly but
surely converted her extra pawn... only to blunder her advantage again!
Stefanova reached a book drawn rook endgame, but she blundered majorly missing
the following:} O-O {[%emt 0:02:01]} 24. Qe3 {[%emt 0:00:13]} Bd6 {[%emt 0:01:
45]} (24... Nxh5 25. b4 Na4 26. Qxb6 Nxb6 27. Rc7) 25. Nd4 {[%emt 0:02:16]} Nd7
{[%emt 0:02:27]} 26. Bxb5 {[%emt 0:05:44]} e5 {[%emt 0:00:04]} 27. Nc4 {
[%emt 0:03:08]} exd4 {[%emt 0:01:04]} 28. Nxb6 {[%emt 0:00:05]} dxe3 {[%emt 0:
00:03]} 29. Nxd7 {[%emt 0:00:11]} exf2+ {[%emt 0:01:47]} 30. Kxf2 {[%emt 0:00:
05]} Ra8 {[%emt 0:01:33]} 31. Rc3 {[%emt 0:09:16]} Kg7 {[%emt 0:00:52]} 32. e5
{[%emt 0:01:16]} Be7 {[%emt 0:01:01]} 33. Rc7 {[%emt 0:00:45]} Be4 {[%emt 0:00:
25]} 34. Bxf4 {[%emt 0:02:27]} gxf4 {[%emt 0:00:06]} 35. Bc6 {[%emt 0:00:06]}
Bxc6 {[%emt 0:00:52]} 36. Rxc6 {[%emt 0:00:03]} Ra5 {[%emt 0:00:51]} 37. Kf3 {
[%emt 0:00:51]} Rb5 {[%emt 0:00:38]} 38. Rb6 {[%emt 0:02:02]} Rd5 {[%emt 0:00:
37]} 39. Rb7 {[%emt 0:00:06]} Bg5 {[%emt 0:00:35]} 40. Ke2 {[%emt 0:00:00]} Rd4
{[%emt 0:00:00]} 41. Nc5 {[%emt 0:01:58]} Rc4 {[%emt 0:12:02]} 42. b4 {[%emt 0:
06:52]} Rc2+ {[%emt 0:01:04]} 43. Kf3 {[%emt 0:00:16]} Rc3+ {[%emt 0:02:09]}
44. Ke4 {[%emt 0:01:48]} Rg3 {[%emt 0:06:42]} 45. e6 {[%emt 0:06:08]} Rxg2 {
[%emt 0:00:12]} 46. b5 {[%emt 0:06:01]} Kf8 {[%emt 0:03:34]} 47. Rxf7+ {
[%emt 0:00:34]} Ke8 {[%emt 0:00:06]} 48. b6 {[%emt 0:00:11]} Rb2 {[%emt 0:00:
34]} 49. b7 {[%emt 0:05:43]} Be7 {[%emt 0:02:17]} 50. Kd5 {[%emt 0:00:03]} f3 {
[%emt 0:02:56]} 51. Ne4 {[%emt 0:05:27]} Rb6 {[%emt 0:02:56]} 52. Nc5 {[%emt 0:
03:35]} f2 {[%emt 0:01:06]} 53. Rxf2 {[%emt 0:00:46]} Bxc5 {[%emt 0:00:10]} 54.
Kxc5 {[%emt 0:00:02]} Rxb7 {[%emt 0:00:05]} 55. Rf6 {[%emt 0:00:13]} Rb1 {
[%emt 0:01:07]} 56. Rxh6 {[%emt 0:00:14]} Ke7 {[%emt 0:00:29]} 57. Rg6 {
[%emt 0:00:04]} Rh1 {[%emt 0:01:25]} 58. Rh6 {[%emt 0:01:38]} Rc1+ {[%emt 0:00:
32]} 59. Kd5 {[%emt 0:00:04]} Rd1+ {[%emt 0:00:18]} 60. Ke5 {[%emt 0:00:05]}
Re1+ {[%emt 0:00:07]} 61. Kf5 {[%emt 0:00:04]} Rf1+ {[%emt 0:00:31]} 62. Kg6 {
[%emt 0:00:13]} Kxe6 {[%emt 0:00:23]} 63. Kg7+ {[%emt 0:00:43]} Ke7 {[%emt 0:
00:05]} 64. Ra6 {[%emt 0:02:07]} Rf7+ {[%emt 0:01:30]} 65. Kg6 {[%emt 0:00:06]}
Rf1 {[%emt 0:00:05]} 66. Ra7+ {[%emt 0:00:17]} Kf8 $4 {[%emt 0:00:15]} (66...
Ke6 $1 {is a draw, as I'm sure Karsten Muller would be delighted to show in
his Endgame Magic show on playchess.com}) 67. Ra8+ $1 {[%emt 0:00:09]} Ke7 {
[%emt 0:00:02]} 68. h6 {[%emt 0:00:06]} Rg1+ {[%emt 0:00:24]} 69. Kf5 $1 {
[%emt 0:00:06] Stefanova must have forgotten that now White's pawn does not
need the help of the king to advance, as Black's awkward king position does
the job for her.} Rf1+ {[%emt 0:00:20]} 70. Ke5 {[%emt 0:00:07]} (70. Ke4 $4
Rf8 $11) 70... Re1+ 71. Kd4 Rd1+ 72. Ke3 Re1+ 73. Kd2 Rh1 74. h7 {and Black
cannot stop the pawn, unless she sacrifices a whole rook. Tragic, truly.} 1-0